bitfinex-derivatives/quotes_ETHF0:USTF0_20240924
["timestamp","ask_amount","ask_price","bid_price","bid_amount"]
[1727217872409,1.36285642,2654.8,2654.5,0.37668]
[1727217872715,0.37665,2654.8,2654.5,0.37668]
[1727217872907,1.36285642,2654.8,2654.5,0.37668]
[1727217873215,1.36285642,2654.8,2654.6,0.37668]
[1727217873610,1.36285642,2654.8,2654.5,0.37669]
[1727217873811,0.37665,2654.8,2654.5,0.37669]
[1727217874213,2.04520642,2654.9,2654.4,5.35479217]
[1727217874520,0.37666,2654.8,2654.5,0.37669]
[1727217875014,4.52648,2654.7,2654.4,3.5845]
[1727217875316,0.37668,2654.6,2654.4,3.5845]
[1727217875617,4.1498,2654.7,2654.5,0.37669]
[1727217875618,0.37667,2654.7,2654.5,0.37669]
[1727217876013,3.45266642,2654.8,2654.5,0.37669]
[1727217876315,4.40266642,2654.8,2654.4,4.2009]
[1727217876617,4.40266642,2654.8,2654.5,0.37668]
[1727217877103,0.37667,2654.7,2654.4,0.9931]
[1727217877306,4.02600642,2654.8,2654.5,0.37669]
[1727217877307,4.40266642,2654.8,2654.5,0.37669]
[1727217879101,4.40266642,2654.8,2654.6,0.37668]
[1727217879708,0.37667,2654.7,2654.5,0.37669]
[1727217880503,4.40266642,2654.8,2654.5,0.37669]
[1727217881111,4.40266642,2654.8,2654.4,0.9931]
[1727217881112,2.42185642,2654.9,2654.4,4.2009]
[1727217881413,2.04520642,2654.9,2654.8,0.37665]
[1727217882205,2.04520642,2654.9,2654.4,6.09267]
[1727217882402,2.04520642,2654.9,2654.7,0.37666]
[1727217882606,2.04520642,2654.9,2654.8,0.37665]
[1727217882803,0.98620642,2655.0,2654.9,0.37664]
[1727217883102,1.4816569,2655.1,2655.0,0.37662]
[1727217883103,0.98620642,2655.1,2655.0,0.37662]
[1727217883307,2.5054569,2655.2,2655.1,0.37661]
[1727217883308,1.0238,2655.2,2655.1,0.37661]
[1727217883503,1.95968017,2655.6,2655.1,0.9718]
[1727217883504,1.36276642,2655.5,2655.1,0.9718]
[1727217883710,2.38656642,2655.5,2655.2,1.0365]
[1727217884015,0.37657,2655.4,2655.2,1.41309]
[1727217884213,0.37657,2655.4,2655.2,1.0365]
[1727217884406,1.36277642,2655.4,2655.2,1.0365]
[1727217885311,0.37657,2655.4,2655.2,1.0365]
[1727217885511,1.36277642,2655.4,2655.2,1.0365]
[1727217885812,0.98620642,2655.4,2655.2,1.41309]
[1727217886015,1.36277642,2655.4,2655.2,1.0365]
[1727217886219,2.38656642,2655.5,2655.2,1.0365]
[1727217886414,1.0238,2655.5,2655.3,1.42327]
[1727217886719,1.0238,2655.5,2655.4,0.37657]
[1727217886917,0.98620642,2655.7,2655.3,4.2545]
[1727217887118,2.4854569,2655.8,2655.3,4.2545]
[1727217887119,3.01270642,2655.8,2655.3,4.2545]
[1727217887415,2.0265,2655.8,2655.5,0.37655]
[1727217887615,1.0227,2655.8,2655.6,4.195]
[1727217887819,3.00310642,2656.1,2655.8,0.37651]
[1727217888020,4.02580642,2656.1,2655.8,0.37651]
[1727217888313,3.0396,2656.1,2655.8,0.37651]
[1727217888618,2.0057,2656.1,2655.8,0.37651]
[1727217888922,2.38217,2656.1,2655.7,1.42192]
[1727217889109,0.37649,2656.0,2655.7,1.0454]
[1727217889516,2.38217,2656.1,2655.7,1.42192]
[1727217890424,0.37649,2656.0,2655.7,1.0454]
[1727217890722,2.38218,2656.1,2655.7,1.42192]
[1727217891617,0.37649,2656.0,2655.7,1.42192]
[1727217891820,1.0227,2656.1,2655.7,1.0454]
[1727217892016,1.0227,2656.1,2656.0,0.37648]
[1727217892210,13.43944492,2656.6,2656.0,3.7648]
[1727217892415,13.43944492,2656.6,2656.2,0.37645]
[1727217892416,0.9961,2656.5,2656.2,0.37645]
[1727217892612,0.9961,2656.5,2656.1,1.9936]
[1727217892918,0.9961,2656.5,2656.3,0.37643]
[1727217893216,0.9961,2656.5,2656.4,0.37643]
[1727217893418,0.9961,2656.5,2656.3,1.39903]
[1727217893614,2.43637,2656.8,2656.3,4.89358067]
[1727217893815,1.36507,2656.8,2656.5,0.37641]
[1727217894017,1.36507,2656.8,2656.4,0.37642]
[1727217894615,0.37638,2656.7,2656.4,0.37642]
[1727217894818,4.109,2657.2,2656.5,3.2078]
[1727217895018,1.36503,2657.1,2656.8,0.37636]
[1727217895719,0.37629,2657.4,2657.0,0.37633]
[1727217895920,0.3763,2657.3,2657.1,0.9836]
[1727217896121,0.37629,2657.4,2657.1,1.35992]
[1727217896322,0.37629,2657.4,2657.1,0.9836]
[1727217896517,0.3763,2657.3,2657.1,0.9836]
[1727217896824,0.37629,2657.4,2657.1,0.9836]
[1727217897216,0.3763,2657.3,2657.1,0.9836]
[1727217897416,2.0408,2657.5,2657.1,0.9836]
[1727217897720,0.37631,2657.2,2657.1,0.9836]
[1727217897926,0.3763,2657.3,2657.1,0.9836]
[1727217898514,0.37631,2657.3,2657.1,0.9836]
[1727217898822,0.37631,2657.2,2657.1,0.9836]
[1727217899022,5.2678,2657.4,2657.1,0.9836]
[1727217899230,0.3763,2657.3,2657.1,0.9836]
[1727217899619,0.37631,2657.2,2657.1,0.9836]
[1727217899821,0.3763,2657.3,2657.1,1.35993]
[1727217900019,0.37631,2657.3,2657.1,0.9836]
[1727217900223,5.2678,2657.4,2656.9,0.37635]
[1727217900224,6.20854,2657.4,2656.9,0.37635]
[1727217900518,2.43635,2657.0,2656.8,0.37636]
[1727217900716,2.06,2657.0,2656.7,0.8733]
[1727217900921,2.06,2657.0,2656.7,1.24967]
[1727217901131,0.37636,2656.9,2656.7,1.24967]
[1727217901322,2.9594,2657.0,2656.7,0.8733]
[1727217901626,0.37636,2656.9,2656.7,1.24968]
[1727217902427,0.37637,2656.8,2656.7,0.8733]
[1727217902626,1.8011,2657.0,2656.1,3.2078]
[1727217902627,4.80198,2657.0,2656.1,3.2078]
[1727217902931,0.37635,2656.9,2656.6,0.37639]
[1727217903118,4.80198,2657.0,2656.6,0.37639]
[1727217903119,0.37637,2656.8,2656.6,0.37639]
[1727217903320,0.37637,2656.8,2656.5,0.3764]
[1727217905124,3.8611,2657.0,2656.6,0.3764]
[1727217905323,3.8611,2657.0,2656.5,0.3764]
[1727217905324,0.37638,2656.8,2656.5,0.3764]
[1727217905530,0.37638,2656.8,2656.6,0.3764]
[1727217905723,3.8611,2657.0,2656.6,0.37639]
[1727217905724,0.37636,2656.9,2656.6,0.37639]
[1727217905921,2.17745,2657.0,2656.4,3.2078]
[1727217906125,2.17745,2657.0,2656.4,3.31245564]
[1727217906421,2.17745,2657.0,2656.6,0.37639]
[1727217906625,0.37636,2656.9,2656.6,0.37639]
[1727217906828,0.37635,2656.9,2656.6,0.37639]
[1727217909641,1.8011,2657.0,2656.4,3.31245564]
[1727217910140,0.8994,2657.0,2656.8,0.37636]
[1727217910335,0.8994,2657.0,2656.5,2.06]
[1727217910547,0.8994,2657.0,2656.7,3.58418]
[1727217910745,0.8994,2657.0,2656.8,0.8872]
[1727217910946,0.8994,2657.0,2656.8,2.9472]
[1727217911154,5.04966,2657.6,2656.8,2.9472]
[1727217911155,0.9201,2657.4,2656.8,2.9472]
[1727217911448,0.3763,2657.3,2656.9,0.37635]
[1727217911949,0.9201,2657.4,2656.8,6.155]
[1727217912148,0.9201,2657.4,2657.0,0.37633]
[1727217912445,0.9201,2657.4,2656.8,6.155]
[1727217912751,1.8338,2657.5,2657.2,2.4363]
[1727217912752,0.8863,2657.5,2657.2,2.4363]
[1727217912943,0.8863,2657.5,2657.3,0.946]
[1727217913545,0.37628,2657.4,2657.3,0.946]
[1727217913751,1.26258,2657.5,2657.3,0.946]
[1727217913949,0.37628,2657.4,2657.3,0.946]
[1727217914342,0.3763,2657.3,2656.9,1.27515]
[1727217914651,0.3763,2657.3,2657.0,0.946]
[1727217915047,0.37632,2657.2,2657.0,0.946]
[1727217915854,0.37631,2657.2,2657.0,0.946]
[1727217916145,2.13531,2657.3,2657.0,1.32234]
[1727217916847,2.13531,2657.3,2657.0,0.946]
[1727217917445,0.37631,2657.2,2657.0,0.946]
[1727217918650,0.3763,2657.4,2657.0,1.32234]
[1727217918847,0.3763,2657.3,2657.0,0.946]
[1727217919051,1.33449,2657.4,2657.1,4.1641]
[1727217919244,0.37631,2657.3,2657.1,4.1641]
[1727217919654,1.33449,2657.4,2657.1,4.1641]
[1727217919851,0.3763,2657.3,2657.1,4.1641]
[1727217920358,0.37631,2657.3,2657.1,4.1641]
[1727217920651,1.33449,2657.4,2657.1,4.54042]
[1727217921055,0.9582,2657.4,2657.1,4.1641]
[1727217921257,1.33449,2657.4,2657.1,4.54042]
[1727217921848,0.37631,2657.3,2657.1,0.9563]
[1727217922059,0.37633,2657.1,2657.0,0.946]
[1727217922353,0.37632,2657.2,2657.0,0.946]
[1727217922756,0.37633,2657.1,2657.0,0.946]
[1727217922948,0.94075,2657.3,2657.0,0.946]
[1727217922949,0.37631,2657.2,2657.0,0.946]
[1727217923156,0.94075,2657.3,2657.0,0.946]
[1727217923157,0.37633,2657.1,2657.0,0.946]
[1727217923355,0.871,2657.2,2657.0,0.946]
[1727217923561,0.37633,2657.1,2657.0,0.946]
[1727217923763,1.24732,2657.2,2657.0,1.32234]
[1727217923953,0.37633,2657.1,2657.0,1.32234]
[1727217924652,0.871,2657.2,2657.0,1.32234]
[1727217925051,0.871,2657.2,2657.0,0.946]
[1727217925253,0.37633,2657.1,2657.0,0.946]
[1727217925453,0.37635,2657.0,2656.7,4.0729]
[1727217925653,0.37635,2657.0,2656.9,0.37635]
[1727217926060,0.37639,2656.7,2656.4,3.2078]
[1727217926255,0.8686,2656.9,2656.7,0.37637]
[1727217926459,1.24497,2656.9,2656.7,0.37637]
[1727217926659,1.24497,2656.9,2656.8,0.37637]
[1727217926955,1.24497,2656.9,2656.7,0.37637]
[1727217927459,0.37637,2656.8,2656.6,0.37639]
[1727217928461,0.37637,2656.8,2656.5,3.3202]
[1727217929055,0.3764,2656.6,2656.5,0.8838]
[1727217929647,0.37639,2656.7,2656.5,0.8838]
[1727217929853,1.80951,2656.9,2656.5,1.26021]
[1727217930049,0.37639,2656.7,2656.5,1.26021]
[1727217930253,0.94093,2656.8,2656.5,0.8838]
[1727217930566,0.3764,2656.6,2656.5,0.8838]
[1727217930765,0.8686,2656.9,2656.5,0.8838]
[1727217930766,0.37639,2656.7,2656.5,1.2602]
[1727217930964,0.37637,2656.8,2656.5,2.9438]
[1727217931161,0.8686,2656.9,2656.8,0.37637]
[1727217931462,0.8686,2656.9,2656.7,2.43637]
[1727217931659,0.8686,2656.9,2656.8,2.05067]
[1727217931854,0.8686,2656.9,2656.8,1.6743]
[1727217932054,0.9164,2657.1,2656.8,2.05067]
[1727217932055,0.37634,2657.1,2656.8,2.05067]
[1727217932256,0.37633,2657.1,2656.8,2.05066]
[1727217932460,1.81179,2657.2,2656.8,1.6743]
[1727217932765,0.37635,2656.9,2656.8,1.6743]
[1727217933762,2.79799642,2657.2,2656.8,1.6743]
[1727217933966,0.37634,2657.0,2656.8,1.6743]
[1727217934967,0.37635,2656.9,2656.8,1.6743]
[1727217936468,0.37637,2656.8,2656.6,0.37639]
[1727217936660,1.21277,2656.8,2656.6,0.37639]
[1727217936961,1.21277,2656.8,2656.5,5.18463641]
[1727217937169,0.8364,2656.8,2656.6,0.3764]
[1727217937362,0.8364,2656.8,2656.5,5.18464641]
[1727217937363,1.82260642,2656.8,2656.5,5.18464641]
[1727217937871,0.37638,2656.7,2656.5,5.18464641]
[1727217938260,2.19898642,2656.8,2656.5,6.16768719]
[1727217938570,0.37639,2656.7,2656.5,5.18464641]
[1727217938964,0.37639,2656.7,2656.5,4.7042]
[1727217939172,0.3764,2656.6,2656.5,0.8838]
[1727217939357,0.37643,2656.4,2656.2,0.98304078]
[1727217939558,0.8834,2656.3,2656.2,0.98304078]
[1727217940574,0.8834,2656.3,2656.1,1.88174078]
[1727217940765,1.25984,2656.3,2656.1,1.88174078]
[1727217941063,0.37645,2656.2,2656.1,1.88174078]
[1727217941268,0.37645,2656.2,2656.1,0.8987]
[1727217941472,0.37645,2656.2,2655.9,1.79914078]
[1727217941771,2.22381872,2656.2,2655.8,4.31174078]
[1727217942264,1.84736872,2656.2,2655.8,1.87524078]
[1727217942470,0.98606872,2656.1,2655.8,1.26871]
[1727217942663,1.36253872,2656.1,2655.8,1.26871]
[1727217943169,0.98606872,2656.1,2655.8,2.9522]
[1727217943366,1.36253872,2656.1,2655.8,2.9522]
[1727217943570,0.37647,2656.1,2655.8,3.32871]
[1727217944062,1.84736872,2656.2,2655.8,3.32871]
[1727217944063,2.22382872,2656.2,2655.8,3.32871]
[1727217944265,0.37647,2656.1,2655.8,3.32871]
[1727217944567,0.98606872,2656.2,2655.8,2.9522]
[1727217944763,2.24591872,2656.3,2656.0,0.37648]
[1727217944963,2.24591872,2656.3,2656.0,2.43648]
[1727217945261,1.25985,2656.3,2656.0,5.64428]
[1727217945566,0.37645,2656.2,2655.8,3.3287]
[1727217945764,0.94114,2656.2,2655.8,2.9522]
[1727217945972,0.37649,2656.0,2655.8,2.9522]
[1727217946174,1.36252872,2656.2,2655.9,0.37649]
[1727217946464,0.37646,2656.2,2656.0,2.06]
[1727217947460,1.25984,2656.3,2656.0,2.43647]
[1727217947667,0.8834,2656.3,2656.1,0.37647]
[1727217947867,1.25984,2656.3,2656.1,0.37647]
[1727217948173,0.8834,2656.3,2656.1,0.37647]
[1727217948576,1.25984,2656.3,2656.1,0.37647]
[1727217949766,1.25984,2656.3,2656.1,1.19047]
[1727217950175,1.25984,2656.3,2656.1,1.29452052]
[1727217950783,0.8834,2656.3,2656.1,1.29452052]
[1727217950981,1.25984,2656.3,2656.1,1.29452052]
[1727217951475,0.37645,2656.2,2656.0,2.43648]
[1727217952077,1.25984,2656.3,2656.1,0.37646]
[1727217952378,4.19386872,2656.5,2656.2,2.06]
[1727217952569,1.4816569,2656.6,2656.4,2.43642]
[1727217952570,0.37641,2656.6,2656.4,2.43642]
[1727217952767,5.98616872,2656.7,2656.4,2.06]
[1727217952768,6.36255872,2656.7,2656.4,2.06]
[1727217953083,0.3764,2656.6,2656.4,2.43642]
[1727217953284,0.3764,2656.6,2656.3,2.6163]
[1727217953478,0.3764,2656.6,2656.4,0.37642]
[1727217953976,1.87716872,2656.7,2656.3,2.99273]
[1727217954182,0.37641,2656.6,2656.3,2.99273]
[1727217954682,0.37642,2656.5,2656.3,2.99273]
[1727217954882,1.87716872,2656.7,2656.3,2.71999276]
[1727217955077,1.87716872,2656.7,2656.3,3.09642276]
[1727217955286,0.37641,2656.5,2656.3,2.99273]
[1727217956171,0.3764,2656.6,2656.4,0.37642]
[1727217956378,0.37642,2656.5,2656.3,2.99274]
[1727217956773,0.37643,2656.4,2656.3,0.8969]
[1727217957177,0.37642,2656.5,2656.3,0.8969]
[1727217957382,0.37642,2656.5,2656.3,1.27334]
[1727217957587,0.37642,2656.5,2656.3,0.8969]
[1727217957784,3.5842,2656.6,2656.3,0.8969]
[1727217958084,0.37642,2656.5,2656.3,1.27334]
[1727217958474,0.37642,2656.5,2656.3,1.27333]
[1727217958879,0.37643,2656.4,2656.3,0.8969]
[1727217959383,4.14123,2656.4,2656.0,0.8524]
[1727217959580,4.14123,2656.4,2656.0,1.6985]
[1727217959581,0.8653,2656.3,2656.0,1.6985]
[1727217959776,1.24175,2656.3,2656.1,0.37647]
[1727217960378,1.24175,2656.3,2656.0,2.07497]
[1727217960578,0.37647,2656.1,2656.0,1.6985]
[1727217960774,0.37647,2656.1,2656.0,0.8461]
[1727217961081,0.37646,2656.2,2656.0,0.8461]
[1727217961988,0.8653,2656.3,2656.0,0.8461]
[1727217961989,0.37647,2656.1,2656.0,0.8461]
[1727217962190,1.80643,2656.3,2656.0,1.22258]
[1727217962191,0.37646,2656.2,2656.0,1.22258]
[1727217962389,0.37646,2656.2,2656.0,0.8461]
[1727217962885,0.37646,2656.2,2656.0,1.22258]
[1727217963090,0.8653,2656.3,2656.1,0.37646]
[1727217963273,0.8653,2656.3,2656.2,0.37645]
[1727217963476,3.2078,2656.5,2656.4,0.37643]
[1727217964890,0.98606872,2656.8,2656.4,2.06]
[1727217965091,0.37637,2656.8,2656.5,2.4634]
[1727217965295,1.36243872,2656.8,2656.5,2.8398]
[1727217965686,0.37639,2656.7,2656.5,2.83981]
[1727217965976,0.37639,2656.7,2656.5,1.18341]
[1727217967089,2.19284872,2656.8,2656.5,1.18341]
[1727217967287,1.36243872,2656.8,2656.6,0.37639]
[1727217967489,0.98606872,2656.8,2656.6,0.37639]
[1727217968386,0.98606872,2656.9,2656.7,0.37638]
[1727217968595,0.98606872,2656.9,2656.6,3.2078]
[1727217968889,0.98606872,2656.9,2656.7,0.37637]
[1727217969287,0.98606872,2656.9,2656.5,0.807]
[1727217969482,1.36242872,2656.9,2656.7,0.37638]
[1727217969686,1.36242872,2656.9,2656.5,0.807]
[1727217969885,1.36243872,2656.8,2656.6,0.3764]
[1727217970091,0.98606872,2656.8,2656.5,0.807]
[1727217970288,0.98606872,2656.8,2656.5,1.18341]
[1727217970485,0.37638,2656.7,2656.5,1.18341]
[1727217970794,0.3764,2656.6,2656.5,0.807]
[1727217970980,0.37642,2656.5,2656.3,3.58424]
[1727217971283,0.37642,2656.5,2655.9,0.8412]
[1727217971284,0.37648,2656.0,2655.9,0.8412]
[1727217971484,1.36168054,2656.0,2655.9,0.8412]
[1727217971792,0.98520054,2656.0,2655.7,0.8586]
[1727217971979,0.37652,2655.7,2655.6,0.8412]
[1727217972180,1.82060054,2655.9,2655.6,0.8412]
[1727217972380,0.37652,2655.8,2655.6,0.8412]
[1727217972689,2.06,2655.7,2655.4,0.98304078]
[1727217972879,3.2078,2655.5,2655.2,0.37659]
[1727217973079,2.83953135,2655.7,2655.4,0.37656]
[1727217973386,0.37653,2655.7,2655.4,0.37656]
[1727217973588,0.37653,2655.7,2655.3,0.37657]
[1727217973784,0.37654,2655.6,2655.3,0.37657]
[1727217974289,0.37653,2655.7,2655.3,0.37657]
[1727217974588,3.00135,2655.6,2655.1,0.98304078]
[1727217974788,0.37661,2655.1,2654.8,0.98304078]
[1727217974988,0.8628,2655.0,2654.7,1.78394078]
[1727217975182,1.6894,2655.0,2654.7,0.8009]
[1727217975383,1.6894,2655.0,2654.5,0.37669]
[1727217975384,0.37664,2654.9,2654.5,0.37669]
[1727217975788,1.6894,2655.0,2654.4,0.98304078]
[1727217975981,1.6894,2655.0,2654.7,0.37666]
[1727217976177,1.6894,2655.0,2654.6,3.2078]
[1727217976178,2.06603,2655.0,2654.6,3.58447]
[1727217977586,2.06603,2655.0,2654.6,0.37667]
[1727217978094,1.6894,2655.0,2654.5,2.06]
[1727217978393,0.37664,2654.9,2654.5,2.43669]
[1727217978889,0.37665,2654.9,2654.5,2.43669]
[1727217980385,2.06603,2655.0,2654.6,0.37668]
[1727217980597,0.37664,2654.9,2654.6,3.2078]
[1727217980892,0.37671,2654.4,2654.3,3.2078]
[1727217981091,0.37671,2654.4,2653.9,1.20088]
[1727217981092,0.37672,2654.3,2653.9,1.20088]
[1727217981292,0.37674,2654.2,2653.9,0.8241]
[1727217981894,0.37674,2654.2,2653.4,2.06]
[1727217981895,5.2678,2654.2,2653.4,2.06]
[1727217982102,0.7841,2654.3,2653.8,3.2078]
[1727217982491,0.7841,2654.3,2653.6,2.06]
[1727217982690,4.14967,2654.2,2653.6,2.06]
[1727217982995,4.14967,2654.2,2653.6,2.43682]
[1727217982996,0.37678,2654.0,2653.6,2.43682]
[1727217983186,0.37678,2653.9,2653.5,1.20093]
[1727217983384,0.37677,2654.0,2653.6,0.37681]
[1727217983591,0.37678,2653.9,2653.6,0.37681]
[1727217983893,0.37678,2653.9,2653.5,0.8241]
[1727217983894,0.37676,2654.1,2653.7,0.37681]
[1727217984391,0.37677,2654.0,2653.6,2.43681]
[1727217985188,0.37676,2654.1,2653.7,0.37681]
[1727217985388,3.2078,2654.2,2653.7,0.37681]
[1727217985698,0.37675,2654.1,2653.7,0.37681]
[1727217986191,0.37676,2654.1,2653.7,0.37681]
[1727217986498,3.2078,2654.2,2653.6,2.06]
[1727217986697,3.58455,2654.2,2653.8,0.37679]
[1727217986889,0.37675,2654.2,2653.8,0.37679]
[1727217987094,1.16083,2654.3,2653.9,0.37677]
[1727217987299,1.16083,2654.3,2654.0,0.37676]
[1727217987300,0.7841,2654.3,2654.0,0.37676]
[1727217987599,0.7841,2654.3,2654.1,0.8449]
[1727217987798,1.16083,2654.3,2654.1,0.8449]
[1727217988596,0.7841,2654.3,2654.1,0.8449]
[1727217988803,1.16084,2654.3,2654.1,0.8449]
[1727217989504,0.7841,2654.3,2654.1,1.22164]
[1727217989806,0.7841,2654.3,2654.1,0.8449]
[1727217990503,1.16082,2654.3,2654.1,0.8449]
[1727217990703,0.7841,2654.3,2654.1,0.8449]
[1727217991102,0.7841,2654.3,2654.1,1.22164]
[1727217991298,0.7841,2654.3,2654.2,3.2078]
[1727217992202,0.7841,2654.3,2654.1,1.22165]
[1727217992397,0.7841,2654.3,2654.1,0.8449]
[1727217992705,0.7841,2654.3,2654.1,1.22165]
[1727217993007,5.2678,2654.8,2654.1,0.8449]
[1727217993208,0.8242,2654.8,2654.5,3.2078]
[1727217993412,1.20086,2654.8,2654.5,3.58449]
[1727217993702,1.20086,2654.8,2654.5,3.2078]
[1727217993899,0.37667,2654.7,2654.5,3.2078]
[1727217994394,0.8242,2654.8,2654.3,0.37671]
[1727217994702,0.3767,2654.5,2654.2,1.23433]
[1727217995107,0.37669,2654.6,2654.3,0.37672]
[1727217995304,0.37668,2654.6,2654.4,0.37671]
[1727217995610,0.37668,2654.6,2654.3,0.37672]
[1727217995806,0.8242,2654.8,2654.3,0.37672]
[1727217996106,0.37667,2654.7,2654.4,0.3767]
[1727217996499,0.37668,2654.6,2654.3,0.37671]
[1727217996695,0.37667,2654.7,2654.2,4.0654]
[1727217996903,0.37667,2654.7,2654.4,0.3767]
[1727217997806,1.20086,2654.8,2654.2,4.0654]
[1727217998108,0.37664,2654.9,2654.6,0.37668]
[1727217998295,0.37664,2654.9,2654.7,0.8349]
[1727217998894,0.8436,2655.0,2654.7,1.21157]
[1727217998895,1.22023,2655.0,2654.7,1.21157]
[1727217999603,1.22023,2655.0,2654.8,0.37665]
[1727217999804,1.22023,2655.0,2654.7,1.21156]
[1727218001602,1.22023,2655.0,2654.8,0.37665]
[1727218001805,1.22023,2655.0,2654.7,1.21156]
[1727218002310,1.22022,2655.0,2654.7,1.21156]
[1727218003611,1.22022,2655.0,2654.8,0.37665]
[1727218003809,1.22022,2655.0,2654.7,0.8349]
[1727218004607,1.22022,2655.0,2654.7,4.41936]
[1727218006112,1.22022,2655.0,2654.7,4.41935]
[1727218006301,1.22022,2655.0,2654.8,0.37665]
[1727218006502,1.22022,2655.0,2654.7,4.41936]
[1727218007106,0.8436,2655.0,2654.8,0.37664]
[1727218007311,0.8436,2655.0,2654.9,0.37664]
[1727218007510,0.37661,2655.1,2654.9,0.37664]
[1727218007711,0.37662,2655.0,2654.8,0.37665]
[1727218007915,0.37662,2655.1,2654.8,0.37665]
[1727218008608,0.37662,2655.1,2654.9,0.37664]
[1727218009006,0.37662,2655.1,2654.7,4.876]
[1727218009201,0.37662,2655.1,2654.8,0.37664]
[1727218009514,0.37662,2655.1,2654.9,0.37664]
[1727218009711,0.37662,2655.1,2654.8,0.37665]
[1727218009906,0.37662,2655.1,2654.9,0.37663]
[1727218010408,3.38887,2655.3,2654.7,4.876]
[1727218010409,2.4474,2655.3,2654.7,4.876]
[1727218010905,0.37661,2655.2,2654.9,0.37663]
[1727218011103,2.4474,2655.3,2654.9,0.37663]
[1727218011104,0.37661,2655.1,2654.9,0.37663]
[1727218011301,2.4474,2655.3,2654.9,0.37663]
[1727218011701,2.4474,2655.3,2654.7,4.876]
[1727218011702,3.38889,2655.3,2654.7,4.876]
[1727218012016,0.37667,2654.7,2654.5,0.37668]
[1727218012808,0.37669,2654.6,2654.4,2.02521]
[1727218013107,0.37669,2654.6,2654.4,2.0252]
[1727218013502,0.37669,2654.5,2654.4,1.6485]
[1727218013903,0.37668,2654.6,2654.4,2.0252]
[1727218014104,3.34066,2654.8,2654.4,1.6485]
[1727218014303,0.37669,2654.6,2654.4,2.02521]
[1727218015614,0.37669,2654.5,2654.4,0.8112]
[1727218016804,0.37669,2654.5,2654.3,0.37672]
[1727218017113,0.8463,2654.4,2654.3,0.37672]
[1727218018715,0.8463,2654.4,2654.2,1.15433]
[1727218018907,0.8463,2654.4,2654.2,0.7776]
[1727218019109,1.36187054,2654.7,2654.4,0.3767]
[1727218019408,1.36187054,2654.7,2654.2,3.9854]
[1727218019409,0.37667,2654.7,2654.2,4.96844078]
[1727218019711,0.37667,2654.7,2654.4,0.3767]
[1727218019899,3.38460054,2654.8,2654.5,0.37669]
[1727218020105,0.37667,2654.7,2654.4,0.3767]
[1727218020415,0.8037,2654.8,2654.6,0.37668]
[1727218020616,0.8037,2654.8,2654.7,1.6442]
[1727218020909,1.18035,2654.8,2654.7,1.6442]
[1727218021305,0.98520054,2654.9,2654.7,1.6442]
[1727218021509,0.98520054,2654.9,2654.8,1.20045]
[1727218021710,1.36183054,2655.0,2654.8,1.20045]
[1727218021909,0.98520054,2655.0,2654.8,1.20045]
[1727218023417,0.98520054,2654.9,2654.8,1.20045]
[1727218023614,0.98520054,2655.0,2654.8,1.20045]
[1727218024022,0.98520054,2655.0,2654.9,0.37664]
[1727218024216,0.98520054,2655.1,2655.0,0.37662]
[1727218024410,0.98520054,2655.3,2655.0,0.37662]
[1727218024719,0.98520054,2655.3,2654.8,0.8238]
[1727218024720,0.3766,2655.2,2655.1,0.8349]
[1727218025114,1.36179054,2655.3,2655.1,0.8349]
[1727218025417,0.3766,2655.2,2655.1,0.8349]
[1727218025721,1.36179054,2655.3,2655.1,0.8349]
[1727218026516,1.36179054,2655.3,2655.1,1.2115]
[1727218026713,0.98520054,2655.3,2655.2,1.1708]
[1727218027014,0.98520054,2655.4,2655.2,1.17079]
[1727218027217,0.98520054,2655.4,2655.3,0.37658]
[1727218027415,0.98520054,2655.4,2655.2,0.7942]
[1727218027919,1.36177054,2655.4,2655.2,0.7942]
[1727218028216,0.98520054,2655.4,2655.2,1.17079]
[1727218031216,0.98520054,2655.4,2654.8,0.8238]
[1727218031217,5.8264,2655.3,2654.8,0.8238]
[1727218031412,0.37661,2655.1,2654.9,1.6674]
[1727218031813,1.36002276,2655.1,2654.9,1.6674]
[1727218032011,0.37662,2655.0,2654.9,1.6674]
[1727218032211,0.37662,2655.0,2654.9,0.8208]
[1727218032514,1.36003276,2655.0,2654.9,0.8208]
[1727218033018,1.36038821,2655.0,2654.9,0.8208]
[1727218033219,0.37667,2654.7,2654.6,0.8466]
[1727218033418,0.37668,2654.6,2654.5,0.8208]
[1727218033721,2.06,2654.6,2654.3,0.98304078]
[1727218033911,2.06,2654.6,2654.3,0.8208]
[1727218033912,1.2304,2654.5,2654.3,0.8208]
[1727218034117,1.2304,2654.5,2654.3,1.80384078]
[1727218034118,0.8537,2654.5,2654.3,1.80384078]
[1727218034421,1.23041,2654.5,2654.3,0.8208]
[1727218034623,0.37671,2654.4,2654.3,0.8208]
[1727218034915,0.8537,2654.5,2654.3,0.8208]
[1727218035321,1.36051262,2654.6,2654.3,0.8208]
[1727218035520,0.3767,2654.5,2654.3,0.8208]
[1727218035722,1.36051262,2654.6,2654.3,0.8208]
[1727218035925,0.3767,2654.5,2654.3,0.8208]
[1727218036321,0.98382262,2654.6,2654.3,5.01164078]
[1727218036727,1.36050262,2654.7,2654.3,5.01164078]
[1727218037023,0.98382262,2654.6,2654.3,5.01164078]
[1727218037823,1.36050262,2654.6,2654.3,5.01164078]
[1727218038025,0.98382262,2654.6,2654.3,5.01164078]
[1727218039525,0.3767,2654.5,2654.3,1.80384078]
[1727218039717,0.98382262,2654.5,2654.3,0.8208]
[1727218041718,1.36050262,2654.6,2654.3,1.80384078]
[1727218042029,0.98382262,2654.5,2654.3,0.8208]